fUSD/lending_fUSD_20240919
["ID","MTS","AMOUNT","RATE_DAILY","PERIOD"]
[338503004,1726708246178,-1133.97,0.0001452,2]
[338503005,1726708246187,-1252.59,0.0001452,2]
[338503006,1726708246196,-299.74443655,0.0001452,2]
[338503007,1726708246206,-500.0,0.0001452,2]
[338503008,1726708246215,-500.0,0.0001452,2]
[338503009,1726708246224,-500.0,0.0001452,2]
[338503010,1726708246233,-1504.94,0.0001452,2]
[338503011,1726708246242,-500.0,0.0001452,2]
[338503012,1726708246251,-1112.44,0.0001452,2]
[338503013,1726708246261,-1410.56,0.0001452,2]
[338503015,1726708246270,-500.0,0.0001452,2]
[338503017,1726708246279,-200.01419003,0.0001452,2]
[338503018,1726708246293,-3397.81,0.0001452,2]
[338503020,1726708246303,-228.27,0.0001452,2]
[338503021,1726708246312,-500.0,0.0001452,2]
[338503022,1726708246321,-3361.77,0.0001452,2]
[338503024,1726708246331,-958.86,0.0001452,2]
[338503026,1726708246339,-697.15,0.0001452,2]
[338503028,1726708246349,-500.0,0.0001452,2]
[338503030,1726708246358,-500.0,0.0001452,2]
[338503032,1726708246367,-500.0,0.0001452,2]
[338503033,1726708246376,-594.79,0.0001452,2]
[338503034,1726708246386,-500.0,0.0001452,2]
[338503035,1726708246395,-771.68,0.0001452,2]
[338503036,1726708246404,-1039.67,0.0001452,2]
[338503037,1726708246414,-500.0,0.0001452,2]
[338503038,1726708246423,-1912.93,0.0001452,2]
[338503039,1726708246433,-518.16,0.0001452,2]
[338503040,1726708246442,-1160.2,0.0001452,2]
[338503041,1726708246453,-3560.7,0.0001452,2]
[338503042,1726708246462,-500.0,0.0001452,2]
[338503043,1726708246471,-542.0,0.0001452,2]
[338503044,1726708246481,-500.0,0.0001452,2]
[338503045,1726708246491,-1794.79,0.0001452,2]
[338503046,1726708246500,-155.35660088,0.0001452,2]
[338503047,1726708246510,-869.9,0.0001452,2]
[338503048,1726708246519,-1129.68,0.0001452,2]
[338503049,1726708246529,-500.0,0.0001452,2]
[338503050,1726708246545,-500.0,0.0001452,2]
[338503051,1726708246555,-500.0,0.0001452,2]
[338503052,1726708246564,-4922.02,0.0001452,2]
[338503053,1726708246573,-1616.25,0.0001452,2]
[338503054,1726708246582,-500.0,0.0001452,2]
[338503055,1726708246591,-799.08,0.0001452,2]
[338503056,1726708246600,-500.0,0.0001452,2]
[338503057,1726708246610,-643.24,0.0001452,2]
[338503058,1726708246619,-374.16190868,0.0001452,2]
[338503059,1726708246628,-500.0,0.0001452,2]
[338503060,1726708246638,-3178.54,0.0001452,2]
[338503061,1726708246648,-3208.57,0.0001452,2]
[338503062,1726708246657,-735.36,0.0001452,2]
[338503063,1726708246667,-4450.04,0.0001452,2]
[338503064,1726708246677,-500.0,0.0001452,2]
[338503065,1726708246687,-715.85,0.0001452,2]
[338503066,1726708246696,-500.0,0.0001452,2]
[338503067,1726708246706,-1162.95,0.0001452,2]
[338503068,1726708246716,-500.0,0.0001452,2]
[338503069,1726708246725,-4678.91,0.0001452,2]
[338503070,1726708246734,-993.88,0.0001452,2]
[338503071,1726708246744,-937.31,0.0001452,2]
[338503072,1726708246754,-707.26,0.0001452,2]
[338503073,1726708246764,-1389.53,0.0001452,2]
[338503074,1726708246774,-500.0,0.0001452,2]
[338503076,1726708246783,-500.0,0.0001452,2]
[338503078,1726708246792,-2806.67,0.0001452,2]
[338503080,1726708246800,-500.0,0.0001452,2]
[338503081,1726708246809,-3197.8,0.0001452,2]
[338503082,1726708246819,-661.38,0.0001452,2]
[338503083,1726708246829,-2975.2,0.0001452,2]
[338503084,1726708246839,-661.24,0.0001452,2]
[338503085,1726708246848,-2836.14,0.0001452,2]
[338503086,1726708246858,-500.0,0.0001452,2]
[338503087,1726708246868,-1323.11,0.0001452,2]
[338503088,1726708246882,-1500.26,0.0001452,2]
[338503089,1726708246892,-626.95130838,0.0001452,2]
[338503090,1726708246902,-211.43402884,0.0001452,2]
[338503091,1726708246912,-500.0,0.0001452,2]
[338503092,1726708246923,-583.33,0.0001452,2]
[338503093,1726708246932,-500.0,0.0001452,2]
[338503094,1726708246942,-1688.05,0.0001452,2]
[338503095,1726708246953,-3053.88,0.0001452,2]
[338503096,1726708246964,-500.0,0.0001452,2]
[338503097,1726708246973,-1839.3,0.0001452,2]
[338503098,1726708246983,-1040.02,0.0001452,2]
[338503099,1726708246993,-1234.98,0.0001452,2]
[338503100,1726708247002,-3176.91,0.0001452,2]
[338503101,1726708247012,-857.82,0.0001452,2]
[338503102,1726708247021,-500.0,0.0001452,2]
[338503103,1726708247031,-2660.15,0.0001452,2]
[338503104,1726708247040,-1785.88,0.0001452,2]
[338503105,1726708247050,-500.0,0.0001452,2]
[338503106,1726708247060,-423.62638259,0.0001452,3]
[338503107,1726708247069,-587.4,0.0001452,2]
[338503108,1726708247079,-500.0,0.0001452,2]
[338503109,1726708247088,-1155.91,0.0001452,2]
[338503110,1726708247098,-3877.99,0.0001452,2]
[338503111,1726708247108,-793.64,0.0001452,2]
[338503112,1726708247119,-500.0,0.0001452,2]
[338503113,1726708247128,-500.0,0.0001452,2]
[338503114,1726708247138,-535.96,0.0001452,2]
[338503115,1726708247148,-3689.57,0.0001452,2]
[338503116,1726708247157,-2079.36,0.0001452,2]
[338503117,1726708247167,-500.0,0.0001452,2]
[338503118,1726708247176,-500.0,0.0001452,2]
[338503119,1726708247185,-596.0,0.0001452,2]
[338503120,1726708247195,-1008.64,0.0001452,2]
[338503121,1726708247204,-580.62,0.0001452,2]
[338503122,1726708247214,-1957.67,0.0001452,2]
[338503123,1726708247225,-875.21,0.0001452,2]
[338503124,1726708247235,-2600.2,0.0001452,2]
[338503125,1726708247244,-500.0,0.0001452,2]
[338503126,1726708247254,-500.0,0.0001452,2]
[338503127,1726708247263,-500.0,0.0001452,2]
[338503128,1726708247273,-659.24,0.0001452,2]
[338503129,1726708247282,-500.0,0.0001452,2]
[338503130,1726708247291,-500.0,0.0001452,2]
[338503131,1726708247301,-500.0,0.0001452,2]
[338503132,1726708247310,-500.0,0.0001452,2]
[338503133,1726708247319,-500.0,0.0001452,2]
[338503134,1726708247329,-569.45,0.0001452,2]
[338503135,1726708247339,-500.0,0.0001452,2]
[338503136,1726708247349,-1081.75,0.0001452,2]
[338503137,1726708247359,-1461.58,0.0001452,2]
[338503138,1726708247368,-596.23,0.0001452,2]
[338503139,1726708247378,-718.75250904,0.0001452,2]
[338503140,1726708247471,-1880.21749096,0.0001452,2]
[338503141,1726708247481,-500.0,0.0001452,2]
[338503142,1726708247491,-500.0,0.0001452,2]
[338503143,1726708247500,-606.82802305,0.0001452,2]
[338503144,1726708247509,-1391.78,0.0001452,2]
[338503145,1726708247518,-4819.4,0.0001452,2]
[338503146,1726708247528,-500.0,0.0001452,2]
[338503147,1726708247540,-2350.75,0.0001452,2]
[338503148,1726708247558,-500.0,0.0001452,2]
[338503149,1726708247567,-1973.31,0.0001452,2]
[338503150,1726708247577,-500.0,0.0001452,2]
[338503151,1726708247586,-500.0,0.0001452,2]
[338503152,1726708247596,-697.32,0.0001452,2]
[338503153,1726708247606,-2043.47,0.0001452,2]
[338503154,1726708247615,-1217.08,0.0001452,2]
[338503155,1726708247901,-1998.5,0.0001452,2]
[338503156,1726708247962,-500.0,0.0001452,2]
[338503157,1726708247972,-1876.43,0.0001452,2]
[338503158,1726708247982,-500.0,0.0001452,2]
[338503159,1726708247991,-1482.61,0.0001452,2]
[338503160,1726708248002,-500.0,0.0001452,2]
[338503161,1726708248012,-500.0,0.0001452,2]
[338503162,1726708248021,-1323.77,0.0001452,2]
[338503163,1726708248031,-1034.65,0.0001452,2]
[338503164,1726708248041,-1499.58,0.0001452,2]
[338503165,1726708248051,-500.0,0.0001452,2]
[338503166,1726708248060,-181.54208696,0.0001452,2]
[338503167,1726708248070,-500.0,0.0001452,2]
[338503168,1726708248080,-1955.43,0.0001452,2]
[338503169,1726708248090,-1411.51,0.0001452,2]
[338503170,1726708248100,-768.82,0.0001452,2]
[338503171,1726708248110,-500.0,0.0001452,2]
[338503172,1726708248120,-500.0,0.0001452,2]
[338503173,1726708248130,-500.0,0.0001452,2]
[338503174,1726708248140,-500.0,0.0001452,2]
[338503175,1726708248150,-500.0,0.0001452,2]
[338503176,1726708248159,-968.55,0.0001452,2]
[338503177,1726708248169,-1632.57,0.0001452,2]
[338503178,1726708248178,-500.0,0.0001452,2]
[338503179,1726708248189,-500.0,0.0001452,2]
[338503180,1726708248198,-500.0,0.0001452,2]
[338503181,1726708248207,-2243.39,0.0001452,2]
[338503182,1726708248216,-1701.33,0.0001452,2]
[338503183,1726708248226,-500.0,0.0001452,2]
[338503184,1726708248235,-1759.63,0.0001452,2]
[338503185,1726708248244,-742.83,0.0001452,2]
[338503186,1726708248253,-2871.62,0.0001452,2]
[338503187,1726708248263,-248.95960449,0.0001452,2]
[338503188,1726708248272,-500.0,0.0001452,2]
[338503189,1726708248281,-500.0,0.0001452,2]
[338503190,1726708248291,-500.0,0.0001452,2]
[338503191,1726708248300,-500.0,0.0001452,2]
[338503192,1726708248309,-1493.33,0.0001452,2]
[338503193,1726708248319,-511.93,0.0001452,2]
[338503194,1726708248328,-3476.15,0.0001452,2]
[338503195,1726708248338,-583.68,0.0001452,2]
[338503196,1726708248348,-676.46,0.0001452,2]
[338503197,1726708248357,-660.42,0.0001452,2]
[338503198,1726708248366,-500.0,0.0001452,2]
[338503199,1726708248376,-500.0,0.0001452,2]
[338503200,1726708248388,-951.02,0.0001452,2]
[338503201,1726708248397,-500.0,0.0001452,2]
[338503202,1726708248406,-595.11464745,0.0001452,2]
[338503203,1726708248416,-542.97,0.0001452,2]
[338503204,1726708248425,-432.23851795,0.0001452,2]
[338503205,1726708248435,-679.09,0.0001452,2]
[338503206,1726708248445,-515.22669546,0.0001452,2]
[338503207,1726708248455,-4359.65,0.0001452,2]
[338503208,1726708248464,-500.0,0.0001452,2]
[338503209,1726708248474,-2226.18,0.0001452,2]
[338503210,1726708248483,-2327.06,0.0001452,2]
[338503211,1726708248493,-500.0,0.0001452,2]
[338503212,1726708248502,-1136.03,0.0001452,2]
[338503213,1726708248512,-500.0,0.0001452,2]
[338503214,1726708248521,-767.53,0.0001452,2]
[338503215,1726708248530,-500.0,0.0001452,2]
[338503216,1726708248539,-500.0,0.0001452,2]
[338503217,1726708248548,-1516.52,0.0001452,2]
[338503218,1726708248557,-542.44,0.0001452,2]
[338503219,1726708248566,-500.0,0.0001452,2]
[338503220,1726708248575,-1265.34,0.0001452,2]
[338503221,1726708248585,-500.0,0.0001452,2]
[338503222,1726708248594,-3208.96,0.0001452,2]
[338503223,1726708248603,-500.0,0.0001452,2]
[338503224,1726708248613,-500.0,0.0001452,2]
[338503225,1726708248622,-2821.07,0.0001452,2]
[338503226,1726708248632,-1916.53,0.0001452,2]
[338503227,1726708248641,-5225.96,0.0001452,2]
[338503228,1726708248650,-1017.2,0.0001452,2]
[338503229,1726708248659,-500.0,0.0001452,2]
[338503230,1726708248669,-500.0,0.0001452,2]
[338503231,1726708248679,-500.0,0.0001452,2]
[338503232,1726708248688,-500.0,0.0001452,2]
[338503233,1726708248698,-2348.81,0.0001452,2]
[338503234,1726708248708,-977.1,0.0001452,2]
[338503235,1726708248717,-1344.3,0.0001452,2]
[338503236,1726708248726,-639.6574497,0.0001452,2]
[338503237,1726708248736,-500.0,0.0001452,2]
[338503238,1726708248745,-3123.83,0.0001452,2]
[338503239,1726708248755,-500.0,0.0001452,2]
[338503240,1726708248764,-688.93,0.0001452,2]
[338503241,1726708248774,-500.0,0.0001452,2]
[338503242,1726708248784,-3668.49,0.0001452,2]
[338503243,1726708248793,-4066.08,0.0001452,2]
[338503244,1726708248803,-500.0,0.0001452,2]
[338503245,1726708248813,-500.0,0.0001452,2]
[338503246,1726708248823,-879.14,0.0001452,2]
[338503247,1726708248832,-500.0,0.0001452,2]
[338503248,1726708248842,-1798.15,0.0001452,2]
[338503249,1726708248852,-563.51,0.0001452,2]
[338503250,1726708248863,-500.0,0.0001452,2]
[338503251,1726708248876,-500.0,0.0001452,2]
[338503252,1726708248896,-683.01,0.0001452,2]
[338503253,1726708248908,-929.72,0.0001452,2]
[338503254,1726708248918,-1289.74,0.0001452,2]
[338503255,1726708248927,-212.15020709,0.0001452,2]
[338503256,1726708248937,-1695.26,0.0001452,2]
[338503257,1726708248947,-899.26,0.0001452,2]
[338503258,1726708248956,-4009.73,0.0001452,2]
[338503259,1726708248966,-500.0,0.0001452,2]
[338503260,1726708248977,-500.0,0.0001452,2]
[338503261,1726708248988,-500.0,0.0001452,2]
[338503262,1726708248997,-500.0,0.0001452,2]
[338503263,1726708249007,-500.0,0.0001452,2]
[338503264,1726708249016,-1993.55,0.0001452,2]
[338503265,1726708249026,-500.0,0.0001452,2]
[338503266,1726708249035,-830.0,0.0001452,2]
[338503267,1726708249046,-387.00580196,0.0001452,2]
[338503268,1726708249056,-500.0,0.0001452,2]
[338503269,1726708249066,-500.0,0.0001452,2]
[338503270,1726708249076,-500.0,0.0001452,2]
[338503271,1726708249085,-872.73,0.0001452,2]
[338503272,1726708249094,-4104.63,0.0001452,2]
[338503273,1726708249104,-1244.86,0.0001452,2]
[338503274,1726708249113,-500.0,0.0001452,2]
[338503275,1726708249123,-1596.5,0.0001452,2]
[338503276,1726708249133,-500.0,0.0001452,2]
[338503277,1726708249142,-1289.03,0.0001452,2]
[338503278,1726708249152,-3256.64,0.0001452,2]
[338503279,1726708249161,-1116.65,0.0001452,2]
[338503280,1726708249171,-500.0,0.0001452,2]
[338503281,1726708249180,-500.0,0.0001452,2]
[338503282,1726708249189,-3961.81,0.0001452,2]
[338503283,1726708249199,-500.0,0.0001452,2]
[338503284,1726708249208,-500.0,0.0001452,2]
[338503285,1726708249218,-500.0,0.0001452,2]
[338503286,1726708249227,-1975.78,0.0001452,2]
[338503287,1726708249236,-551.76,0.0001452,2]
[338503288,1726708249246,-500.0,0.0001452,2]
[338503289,1726708249255,-500.0,0.0001452,2]
[338503290,1726708249265,-500.0,0.0001452,2]
[338503291,1726708249274,-500.0,0.0001452,2]
[338503292,1726708249284,-500.0,0.0001452,2]
[338503293,1726708249294,-500.0,0.0001452,2]
[338503294,1726708249304,-500.0,0.0001452,2]
[338503295,1726708249314,-500.0,0.0001452,2]
[338503296,1726708249324,-898.58,0.0001452,2]
[338503297,1726708249333,-516.17,0.0001452,2]
[338503298,1726708249343,-500.0,0.0001452,2]
[338503299,1726708249352,-1843.11,0.0001452,2]
[338503300,1726708249361,-532.68,0.0001452,2]
[338503301,1726708249370,-616.50972743,0.0001452,2]
[338503302,1726708249380,-2233.83,0.0001452,2]
[338503303,1726708249390,-940.54,0.0001452,2]
[338503304,1726708249399,-500.0,0.0001452,2]
[338503305,1726708249408,-1139.79,0.0001452,2]
[338503306,1726708249418,-526.68744513,0.0001452,2]
[338503307,1726708249427,-500.0,0.0001452,2]
[338503308,1726708249437,-500.0,0.0001452,2]
[338503309,1726708249446,-1022.67,0.0001452,2]
[338503310,1726708249456,-500.0,0.0001452,2]
[338503311,1726708249465,-974.79,0.0001452,2]
[338503312,1726708249475,-500.0,0.0001452,2]
[338503313,1726708249485,-500.0,0.0001452,2]
[338503314,1726708249495,-500.0,0.0001452,2]
[338503315,1726708249504,-500.0,0.0001452,2]
[338503316,1726708249514,-500.0,0.0001452,2]
[338503317,1726708249523,-500.0,0.0001452,2]
[338503318,1726708249534,-2171.1,0.0001452,2]
[338503319,1726708249549,-500.0,0.0001452,2]
[338503320,1726708249559,-500.0,0.0001452,2]
[338503321,1726708249569,-500.0,0.0001452,2]
[338503322,1726708249578,-500.0,0.0001452,2]
[338503323,1726708249588,-500.0,0.0001452,2]
[338503324,1726708249600,-3374.96,0.0001452,2]
[338503325,1726708249610,-500.0,0.0001452,2]
[338503326,1726708249623,-500.0,0.0001452,2]
[338503327,1726708249633,-500.0,0.0001452,2]
[338503328,1726708249642,-708.5,0.0001452,2]
[338503329,1726708249652,-3792.92,0.0001452,2]
[338503330,1726708249662,-522.37,0.0001452,2]
[338503331,1726708249671,-640.78,0.0001452,2]
[338503332,1726708249681,-500.0,0.0001452,2]
[338503333,1726708249690,-500.0,0.0001452,2]
[338503334,1726708249699,-1730.63,0.0001452,2]
[338503335,1726708249708,-357.66185409,0.0001452,2]
[338503336,1726708249718,-643.80613698,0.0001452,2]
[338503337,1726708249727,-500.0,0.0001452,2]
[338503338,1726708249736,-5287.99,0.0001452,2]
[338503339,1726708249746,-772.17,0.0001452,2]
[338503340,1726708249755,-1013.2,0.0001452,2]
[338503341,1726708249764,-5142.12,0.0001452,2]
[338503342,1726708249774,-769.31,0.0001452,2]
[338503343,1726708249783,-5279.0,0.0001452,2]
[338503344,1726708249793,-500.0,0.0001452,2]
[338503345,1726708249803,-1162.87,0.0001452,2]
[338503346,1726708249812,-500.0,0.0001452,2]
[338503347,1726708249821,-1019.22,0.0001452,2]
[338503348,1726708249830,-500.0,0.0001452,2]
[338503349,1726708249839,-2602.54,0.0001452,2]
[338503350,1726708249849,-500.0,0.0001452,2]
[338503351,1726708249859,-2438.15,0.0001452,2]
[338503352,1726708249868,-752.19,0.0001452,2]
[338503353,1726708249879,-3657.05,0.0001452,2]
[338503354,1726708249890,-756.96,0.0001452,2]
[338503355,1726708249899,-500.0,0.0001452,2]
[338503356,1726708249909,-500.0,0.0001452,2]
[338503357,1726708249919,-1911.01,0.0001452,2]
[338503358,1726708249928,-3769.83,0.0001452,2]
[338503359,1726708249937,-3904.24,0.0001452,2]
[338503360,1726708249946,-500.0,0.0001452,2]
[338503361,1726708249956,-967.04,0.0001452,2]
[338503362,1726708249967,-500.0,0.0001452,2]
[338503363,1726708249976,-500.0,0.0001452,2]
[338503364,1726708249986,-500.0,0.0001452,2]
[338503365,1726708249995,-2553.64,0.0001452,2]
[338503366,1726708250004,-2985.64,0.0001452,2]
[338503367,1726708250014,-1914.5,0.0001452,2]
[338503368,1726708250024,-1574.14,0.0001452,2]
[338503369,1726708250035,-500.0,0.0001452,2]
[338503370,1726708250055,-500.0,0.0001452,2]
[338503371,1726708250065,-500.0,0.0001452,2]
[338503372,1726708250074,-2420.05,0.0001452,2]
[338503373,1726708250084,-500.0,0.0001452,2]
[338503374,1726708250093,-698.99,0.0001452,2]
[338503375,1726708250103,-500.0,0.0001452,2]
[338503376,1726708250112,-1337.57,0.0001452,2]
[338503377,1726708250121,-500.0,0.0001452,2]
[338503378,1726708250131,-875.38,0.0001452,2]
[338503379,1726708250140,-962.8,0.0001452,2]
[338503380,1726708250150,-500.0,0.0001452,2]
[338503381,1726708250159,-2686.49,0.0001452,2]
[338503382,1726708250169,-1429.41,0.0001452,2]
[338503383,1726708250178,-1449.81,0.0001452,2]
[338503384,1726708250187,-500.0,0.0001452,2]
[338503385,1726708250196,-1108.21,0.0001452,2]
[338503386,1726708250206,-500.0,0.0001452,2]
[338503387,1726708250215,-2601.76,0.0001452,2]
[338503388,1726708250224,-500.0,0.0001452,2]
[338503389,1726708250234,-713.01,0.0001452,2]
[338503390,1726708250244,-3839.21,0.0001452,2]
[338503391,1726708250255,-500.0,0.0001452,2]
[338503392,1726708250264,-500.0,0.0001452,2]
[338503393,1726708250273,-1250.42,0.0001452,2]
[338503394,1726708250283,-934.77,0.0001452,2]
[338503395,1726708250304,-913.84,0.0001452,2]
[338503396,1726708250314,-639.61,0.0001452,2]
[338503397,1726708250407,-676.8,0.0001452,2]
[338503398,1726708250417,-615.21,0.0001452,2]
[338503399,1726708250426,-1801.08,0.0001452,2]
[338503400,1726708250435,-500.0,0.0001452,2]
[338503401,1726708250445,-3454.17,0.0001452,2]
[338503402,1726708250454,-600.51035463,0.0001452,2]
[338503403,1726708250463,-976.4,0.0001452,2]
[338503404,1726708250472,-679.09,0.0001452,2]
[338503405,1726708250482,-500.0,0.0001452,2]
[338503406,1726708250491,-1823.35,0.0001452,2]
[338503407,1726708250500,-500.0,0.0001452,2]
[338503408,1726708250509,-500.0,0.0001452,2]
[338503409,1726708250518,-5294.58,0.0001452,2]
[338503410,1726708250528,-500.0,0.0001452,2]
[338503411,1726708250537,-500.0,0.0001452,2]
[338503412,1726708250555,-530.56,0.0001452,2]
[338503413,1726708250565,-1990.11,0.0001452,2]
[338503414,1726708250574,-150.94923608,0.0001452,2]
[338503415,1726708250583,-500.0,0.0001452,2]
[338503416,1726708250592,-500.0,0.0001452,2]
[338503417,1726708250601,-3424.98,0.0001452,2]
[338503418,1726708250610,-1335.21,0.0001452,2]
[338503419,1726708250619,-500.0,0.0001452,2]
[338503420,1726708250628,-500.0,0.0001452,2]
[338503421,1726708250637,-500.0,0.0001452,2]
[338503422,1726708250646,-2226.28,0.0001452,2]
[338503423,1726708250655,-830.58,0.0001452,2]
[338503424,1726708250664,-500.0,0.0001452,2]
[338503425,1726708250673,-812.79576756,0.0001452,2]
[338503426,1726708251418,-611.11,0.0001452,2]
[338503427,1726708251437,-1111.76423244,0.0001452,2]
[338503428,1726708251448,-700.11,0.0001452,2]
[338503429,1726708251458,-500.0,0.0001452,2]
[338503430,1726708251469,-4089.28,0.0001452,2]
[338503431,1726708251479,-2195.25,0.0001452,2]
[338503432,1726708251488,-500.0,0.0001452,2]
[338503433,1726708251498,-23611.63,0.0001452,2]
[338503434,1726708251507,-4592.12,0.0001452,2]
[338503435,1726708251516,-500.0,0.0001452,2]
[338503436,1726708251526,-500.0,0.0001452,2]
[338503437,1726708251535,-500.0,0.0001452,2]
[338503438,1726708251556,-500.0,0.0001452,2]
[338503439,1726708251566,-500.0,0.0001452,2]
[338503440,1726708251576,-500.0,0.0001452,2]
[338503441,1726708251586,-631.87553155,0.0001452,2]
[338503442,1726708251596,-500.0,0.0001452,2]
[338503443,1726708251605,-1347.65,0.0001452,2]
[338503444,1726708251615,-659.03,0.0001452,2]
[338503445,1726708251625,-973.28,0.0001452,2]
[338503446,1726708251635,-500.0,0.0001452,2]
[338503447,1726708251644,-753.77423411,0.0001452,2]
[338503448,1726708251671,-41.08576589,0.0001452,2]
[338503449,1726708251680,-686.14500091,0.0001452,2]
[338503450,1726708251691,-82.64499909,0.0001452,2]
[338503451,1726708251700,-854.45099121,0.0001452,2]
[338503452,1726708251712,-409.06409313,0.0001452,2]
[338503453,1726708251723,-4177.89491566,0.0001452,2]
[338503454,1726708251734,-1950.9,0.0001452,2]
[338503455,1726708251743,-500.0,0.0001452,2]
[338503456,1726708251753,-4253.54,0.0001452,2]
[338503457,1726708251762,-856.18,0.0001452,2]
[338503458,1726708251774,-1019.24,0.0001452,2]
[338503459,1726708251784,-500.0,0.0001452,2]
[338503460,1726708251794,-500.0,0.0001452,2]
[338503461,1726708251804,-500.0,0.0001452,2]
[338503462,1726708251815,-3730.21,0.0001452,2]
[338503463,1726708251826,-500.0,0.0001452,2]
[338503464,1726708251837,-514.31,0.0001452,2]
[338503465,1726708251847,-2618.23,0.0001452,2]
[338503466,1726708251856,-595.61,0.0001452,2]
[338503467,1726708251865,-3541.55,0.0001452,2]
[338503468,1726708251880,-500.0,0.0001452,2]
[338503469,1726708251890,-552.61,0.0001452,2]
[338503470,1726708251900,-2689.08,0.0001452,2]
[338503471,1726708251910,-500.0,0.0001452,2]
[338503472,1726708251922,-565.27,0.0001452,2]
[338503473,1726708251931,-500.0,0.0001452,2]
[338503474,1726708251941,-1701.06,0.0001452,2]
[338503475,1726708251950,-500.0,0.0001452,2]
[338503476,1726708251962,-646.93,0.0001452,2]
[338503477,1726708251971,-1361.26,0.0001452,2]
[338503478,1726708251981,-772.3,0.0001452,2]
[338503479,1726708251991,-500.0,0.0001452,2]
[338503480,1726708252001,-500.0,0.0001452,2]
[338503481,1726708252011,-967.5,0.0001452,2]
[338503482,1726708252020,-500.0,0.0001452,2]
[338503483,1726708252030,-2315.0,0.0001452,2]
[338503484,1726708252042,-749.62,0.0001452,2]
[338503485,1726708252051,-6191.16,0.0001452,2]
[338503486,1726708252061,-500.0,0.0001452,2]
[338503487,1726708252071,-256.04075093,0.0001452,2]
[338503488,1726708252082,-929.33,0.0001452,2]
[338503489,1726708252092,-1313.47,0.0001452,2]
[338503490,1726708252102,-500.0,0.0001452,2]
[338503491,1726708252112,-820.93,0.0001452,2]
[338503492,1726708252123,-500.0,0.0001452,2]
[338503493,1726708252133,-526.04,0.0001452,2]
[338503494,1726708252143,-151.0,0.0001452,2]
[338503495,1726708252153,-5712.65,0.0001452,2]
[338503496,1726708252162,-500.0,0.0001452,2]
[338503497,1726708252172,-500.0,0.0001452,2]
[338503498,1726708252183,-500.0,0.0001452,2]
[338503499,1726708252192,-690.51,0.0001452,2]
[338503500,1726708252202,-2618.05,0.0001452,2]
[338503501,1726708252211,-500.0,0.0001452,2]
[338503502,1726708252221,-2815.61,0.0001452,2]
[338503503,1726708252231,-1249.61,0.0001452,2]
[338503504,1726708252240,-3077.15,0.0001452,2]
[338503505,1726708252250,-3793.47,0.0001452,2]
[338503506,1726708252260,-500.0,0.0001452,2]
[338503507,1726708252269,-307.02681592,0.0001452,2]
[338503508,1726708252279,-500.0,0.0001452,2]
[338503509,1726708252290,-500.0,0.0001452,2]
[338503510,1726708252300,-3208.07,0.0001452,2]
[338503511,1726708252310,-8730.35,0.0001452,2]
[338503512,1726708252319,-670.71,0.0001452,2]
[338503513,1726708252329,-3322.79,0.0001452,2]
[338503514,1726708252339,-939.09,0.0001452,2]